fUST/lending_fUST_20260628
["ID","MTS","AMOUNT","RATE_DAILY","PERIOD"]
[426548119,1782579048000,-506.47909548,0.00038356,2]
[426548118,1782579048000,-526.15386932,0.00038356,2]
[426548120,1782579048000,-524.29818672,0.00038356,2]
[426548106,1782579048000,-530.83317223,0.00038356,2]
[426548150,1782579048000,-517.72708715,0.00038356,2]
[426548143,1782579048000,-500.0,0.00038356,2]
[426548154,1782579048000,-515.5533373,0.00038356,2]
[426548184,1782579048000,-500.0,0.00038356,2]
[426548185,1782579048000,-500.0,0.00038356,2]
[426548186,1782579048000,-553.14387719,0.00038356,2]
[426548183,1782579048000,-500.0,0.00038356,2]
[426548177,1782579048000,-524.65168474,0.00038356,2]
[426548187,1782579048000,-505.85031498,0.00038356,2]
[426548188,1782579048000,-305.62931867,0.00038356,2]
[426548189,1782579048000,-151.0,0.00038356,7]
[426548190,1782579048000,-151.0,0.00038356,2]
[426548193,1782579048000,-500.0,0.00038356,2]
[426548192,1782579048000,-151.0,0.00038356,7]
[426548181,1782579048000,-544.46189668,0.00038356,2]
[426548197,1782579048000,-500.0,0.00038356,2]
[426548194,1782579048000,-542.39956703,0.00038356,2]
[426548198,1782579048000,-500.0,0.00038356,2]
[426548196,1782579048000,-450.066786,0.00038356,7]
[426548200,1782579048000,-500.0,0.00038356,2]
[426548199,1782579048000,-450.066786,0.00038356,7]
[426548202,1782579048000,-450.066786,0.00038356,7]
[426548203,1782579048000,-500.0,0.00038356,2]
[426548205,1782579048000,-988.83,0.00038356,2]
[426548204,1782579048000,-547.45871937,0.00038356,2]
[426548201,1782579048000,-450.066786,0.00038356,7]
[426548152,1782579048000,-637.8,0.00038356,2]
[426548195,1782579048000,-810.45,0.00038356,2]
[426548180,1782579048000,-527.29636419,0.00038356,2]
[426548191,1782579048000,-500.0,0.00038356,2]
[426548178,1782579048000,-514.07425848,0.00038356,2]
[426548155,1782579048000,-151.0,0.00038356,7]
[426548153,1782579048000,-500.0,0.00038356,2]
[426548182,1782579048000,-500.0,0.00038356,2]
[426548157,1782579048000,-853.53,0.00038356,2]
[426548206,1782579048000,-62.16981285,0.00038356,2]
[426548158,1782579048000,-531.95314658,0.00038356,2]
[426548159,1782579048000,-509.67982198,0.00038356,2]
[426548161,1782579048000,-513.08568462,0.00038356,2]
[426548160,1782579048000,-6397.45,0.00038356,2]
[426548162,1782579048000,-151.0,0.00038356,7]
[426548163,1782579048000,-507.32617323,0.00038356,2]
[426548164,1782579048000,-500.0,0.00038356,2]
[426548165,1782579048000,-510.19988189,0.00038356,2]
[426548156,1782579048000,-518.96028323,0.00038356,2]
[426548167,1782579048000,-514.05523427,0.00038356,2]
[426548176,1782579048000,-516.1787048,0.00038356,2]
[426548175,1782579048000,-533.2884355,0.00038356,2]
[426548169,1782579048000,-500.0,0.00038356,2]
[426548170,1782579048000,-500.0,0.00038356,2]
[426548174,1782579048000,-500.0,0.00038356,2]
[426548168,1782579048000,-513.06130972,0.00038356,2]
[426548172,1782579048000,-500.0,0.00038356,2]
[426548179,1782579048000,-728.62,0.00038356,2]
[426548171,1782579048000,-2053.84,0.00038356,2]
[426548173,1782579048000,-500.0,0.00038356,2]
[426548166,1782579048000,-500.0,0.00038356,2]
[426548278,1782579375000,1642932.97380168,0.00029717,30]
[426548307,1782579441000,772.64721689,0.000109,2]
[426548312,1782579443000,5000.0,0.000151,13]
[426548317,1782579444000,304.0,0.00029717,30]
[426548334,1782579451000,13424.22300497,7.6e-05,2]
[426548349,1782579469000,158.0,8.2e-05,8]
[426548426,1782579653000,-5000.0,0.00010791,2]
[426548429,1782579670000,-300.0,0.00010899,2]
[426548455,1782579687000,-625.57000138,0.0001079,2]
[426548479,1782579704000,-8196.37588853,0.000109,2]
[426548480,1782579721000,-174.88824955,0.0001079,2]
[426548483,1782579737000,-1030.97689458,0.000109,2]
[426548510,1782579933000,212.72095272,0.00026,30]
[426548648,1782580238000,-195.18917142,0.00034454,2]
[426548630,1782580238000,-1843.0,0.0002703,2]
[426548632,1782580238000,-2286.21630596,0.00029717,30]
[426548637,1782580238000,-156.0,0.000308,2]
[426548635,1782580238000,-7713.78369404,0.00029717,30]
[426548628,1782580238000,-232.872,0.0002703,2]
[426548626,1782580238000,-156.0,0.0002693,2]
[426548641,1782580238000,-789.35048486,0.00034301,120]
[426548644,1782580238000,-160.0,0.00034358,2]
[426548652,1782580238000,-232.835645,0.00034454,2]
[426548639,1782580238000,-160.0,0.00030824,2]
[426548667,1782580238000,-200.61825056,0.00034456,2]
[426548650,1782580238000,-303.73592351,0.00034454,2]
[426548658,1782580238000,-195.51970317,0.00034454,2]
[426548654,1782580238000,-165.56575548,0.00034454,2]
[426548656,1782580238000,-205.82426932,0.00034454,2]
[426548661,1782580238000,-220.73426989,0.00034456,2]
[426548663,1782580238000,-150.40684362,0.00034456,2]
[426548665,1782580238000,-199.99968671,0.00034456,2]
[426548646,1782580238000,-166.75313084,0.00034454,2]
[426548694,1782580239000,-405.0,0.000355,2]
[426548705,1782580239000,-586.55910951,0.00036126,2]
[426548700,1782580239000,-911.20777054,0.00036126,2]
[426548697,1782580239000,-585.56751426,0.00036126,2]
[426548696,1782580239000,-156.90524676,0.00036121,2]
[426548721,1782580239000,-217.32407736,0.00036128,2]
[426548701,1782580239000,-496.69726644,0.00036126,2]
[426548707,1782580239000,-206.04740655,0.00036128,2]
[426548702,1782580239000,-698.50693499,0.00036126,2]
[426548698,1782580239000,-500.25939251,0.00036126,2]
[426548711,1782580239000,-662.20280968,0.00036128,2]
[426548709,1782580239000,-192.37883336,0.00036128,2]
[426548692,1782580239000,-393.82682847,0.0003546,2]
[426548684,1782580239000,-441.46853979,0.00035459,2]
[426548695,1782580239000,-7353.22083871,0.00036093,53]
[426548690,1782580239000,-401.23650113,0.0003546,2]
[426548730,1782580239000,-160.607,0.00036567,45]
[426548688,1782580239000,-399.99937341,0.00035459,2]
[426548683,1782580239000,-391.03940634,0.00035457,2]
[426548681,1782580239000,-411.64853863,0.00035457,2]
[426548686,1782580239000,-300.81368725,0.00035459,2]
[426548679,1782580239000,-465.67129,0.00035457,2]
[426548675,1782580239000,-607.47184703,0.00035457,2]
[426548677,1782580239000,-331.13151096,0.00035457,2]
[426548673,1782580239000,-390.37834284,0.00035457,2]
[426548671,1782580239000,-333.50626167,0.00035457,2]
[426548669,1782580239000,-196.91341423,0.00034456,2]
[426548703,1782580239000,-617.47280795,0.00036126,2]
[426548713,1782580239000,-451.22053087,0.00036128,2]
[426548715,1782580239000,-599.99906012,0.00036128,2]
[426548724,1782580239000,-500.0,0.00036128,2]
[426548784,1782580239000,-154.70439708,0.00037017,2]
[426548779,1782580239000,-833.76565418,0.00037017,2]
[426548777,1782580239000,-205.17625023,0.00036574,2]
[426548773,1782580239000,-787.65365694,0.00036574,2]
[426548781,1782580239000,-975.94585709,0.00037017,2]
[426548766,1782580239000,-180.01326471,0.00036573,2]
[426548775,1782580239000,-434.64815471,0.00036574,2]
[426548768,1782580239000,-799.99874682,0.00036573,2]
[426548770,1782580239000,-230.74847039,0.00036573,2]
[426548764,1782580239000,-601.62737449,0.00036573,2]
[426548762,1782580239000,-268.70737724,0.00036573,2]
[426548760,1782580239000,-882.93707957,0.00036573,2]
[426548728,1782580239000,-3429.40329818,0.00036467,2]
[426548756,1782580239000,-384.75766673,0.00036573,2]
[426548758,1782580239000,-379.63519405,0.00036573,2]
[426548748,1782580239000,-216.78443222,0.00036572,2]
[426548726,1782580239000,-500.0,0.00036402,2]
[426548720,1782580239000,-590.7402427,0.00036128,2]
[426548732,1782580239000,-667.01252335,0.00036572,2]
[426548734,1782580239000,-780.75668567,0.00036572,2]
[426548754,1782580239000,-412.09481309,0.00036573,2]
[426548740,1782580239000,-931.34257999,0.00036572,2]
[426548736,1782580239000,-1214.94369406,0.00036572,2]
[426548744,1782580239000,-782.07881268,0.00036572,2]
[426548742,1782580239000,-823.29707726,0.00036572,2]
[426548752,1782580239000,-396.36716707,0.00036573,15]
[426548746,1782580239000,-222.43033515,0.00036572,2]
[426548738,1782580239000,-662.26302191,0.00036572,2]
[426548750,1782580239000,-170.76143368,0.00036572,2]
[426549531,1782580250000,-1164.17822499,0.00037017,2]
[426549529,1782580250000,-1363.97522049,0.00037017,2]
[426549533,1782580250000,-752.03421812,0.00037019,2]
[426549532,1782580250000,-1029.12134658,0.00037017,2]
[426549534,1782580250000,-984.56707117,0.0003702,2]
[426549535,1782580250000,-151.0,0.00037041,2]
[426549536,1782580250000,-1358.77910776,0.00037626,2]
[426549537,1782580250000,-766.87968147,0.00037686,2]
[426549530,1782580250000,-827.82877739,0.00037017,2]
[426549540,1782580446000,158.67105713,0.00025999,30]
[426549562,1782581433000,-1598.16635912,0.0002608,13]
[426549561,1782581433000,-1420.70670582,0.00025819,13]
[426549564,1782581433000,-186.0,0.00029127,2]
[426549563,1782581433000,-1344.65275693,0.0002608,13]
[426549568,1782581433000,-212.78687207,0.00034454,2]
[426549570,1782581433000,-179.63652878,0.00034479,2]
[426549565,1782581433000,-186.0,0.00032127,2]
[426549566,1782581433000,-500.0,0.0003415,2]
[426549567,1782581433000,-300.0,0.00034452,3]
[426549571,1782581433000,-166.27961751,0.00034479,2]
[426549573,1782581433000,-169.42688335,0.00034479,2]
[426549577,1782581433000,-237.87167286,0.00034479,2]
[426549575,1782581433000,-183.88455477,0.00034479,2]
[426549569,1782581433000,-217.69411577,0.00034454,2]
[426549589,1782581434000,-166.01187629,0.00035483,2]
[426549595,1782581434000,-475.74334573,0.00035483,2]
[426549596,1782581434000,-307.70564682,0.00035483,2]
[426549590,1782581434000,-332.55923501,0.00035483,2]
[426549591,1782581434000,-338.85376671,0.00035483,2]
[426549593,1782581434000,-165.17479672,0.00035483,2]
[426549594,1782581434000,-367.76910954,0.00035483,2]
[426549592,1782581434000,-198.01677794,0.00035483,2]
[426549581,1782581434000,-168.85679205,0.00034479,2]
[426549585,1782581434000,-160.0,0.00035328,2]
[426549586,1782581434000,-425.57374413,0.00035457,2]
[426549588,1782581434000,-359.27305757,0.00035483,2]
[426549583,1782581434000,-204.80799029,0.00034479,2]
[426549584,1782581434000,-186.0,0.00035127,2]
[426549582,1782581434000,-199.63321928,0.00034479,2]
[426549580,1782581434000,-153.85282341,0.00034479,2]
[426549597,1782581434000,-337.71358409,0.00035483,2]
[426549587,1782581434000,-435.38823154,0.00035457,2]
[426549601,1782581434000,-165.68334843,0.00036126,2]
[426549599,1782581434000,-409.61598058,0.00035483,2]
[426549598,1782581434000,-399.26643857,0.00035483,2]
[426549615,1782581434000,-461.55847023,0.00036152,2]
[426549616,1782581434000,-506.57037614,0.00036152,2]
[426549600,1782581434000,-638.3606162,0.00036126,2]
[426549618,1782581434000,-586.82652586,0.00036152,2]
[426549613,1782581434000,-551.65366432,0.00036152,2]
[426549610,1782581434000,-396.03355588,0.00036152,2]
[426549609,1782581434000,-508.28065006,0.00036152,2]
[426549611,1782581434000,-330.34959343,0.00036152,2]
[426549617,1782581434000,-598.89965785,0.00036152,2]
[426549614,1782581434000,-713.61501859,0.00036152,2]
[426549612,1782581434000,-261.5087446,0.00036152,2]
[426549606,1782581434000,-538.90958635,0.00036152,2]
[426549602,1782581434000,-297.89533238,0.00036126,2]
[426549604,1782581434000,-653.08234731,0.00036126,2]
[426549605,1782581434000,-526.82386845,0.00036151,15]
[426549607,1782581434000,-332.02375257,0.00036152,2]
[426549603,1782581434000,-258.70938778,0.00036126,2]
[426549608,1782581434000,-498.83885252,0.00036152,2]
[426549651,1782581438000,-595.79066475,0.00036572,2]
[426549647,1782581438000,-236.19323501,0.00036572,2]
[426549646,1782581438000,-851.14748827,0.00036572,2]
[426549648,1782581438000,-331.36669685,0.00036572,2]
[426549645,1782581438000,-4084.54504601,0.00036498,2]
[426549643,1782581438000,-500.0,0.00036298,2]
[426549640,1782581438000,-151.5,0.00036298,2]
[426549642,1782581438000,-500.0,0.00036298,2]
[426549641,1782581438000,-197.0,0.00036298,2]
[426549639,1782581438000,-151.5,0.00036298,2]
[426549638,1782581438000,-27.59744501,0.00036152,2]
[426549644,1782581438000,-283.89373037,0.00036298,2]
[426549649,1782581438000,-220.30365552,0.00036572,2]
[426549650,1782581438000,-163.93145544,0.00036572,2]
[426549652,1782581438000,-517.41877557,0.00036572,2]
[426549653,1782581438000,-718.54611513,0.00036598,2]
[426549665,1782581438000,-675.42716819,0.00036598,2]
[426549663,1782581438000,-951.48669145,0.00036598,2]
[426549664,1782581438000,-615.41129364,0.00036598,2]
[426549661,1782581438000,-870.77646308,0.00036598,2]
[426549659,1782581438000,-495.52439015,0.00036598,2]
[426549662,1782581438000,-735.53821909,0.00036598,2]
[426549658,1782581438000,-677.70753342,0.00036598,2]
[426549660,1782581438000,-523.01748921,0.00036598,2]
[426549657,1782581438000,-665.11847003,0.00036598,2]
[426549655,1782581438000,-222.75421434,0.00036598,2]
[426549654,1782581438000,-334.76836569,0.00036598,2]
[426549656,1782581438000,-498.03562886,0.00036598,2]
[426549707,1782581439000,-255.05570575,0.00038256,2]
[426549699,1782581439000,-255.05570575,0.00037935,2]
[426549697,1782581439000,-151.0,0.00037863,2]
[426549702,1782581439000,-255.05570575,0.00038096,2]
[426549698,1782581439000,-4084.54504594,0.00037923,2]
[426549701,1782581439000,-192.974844,0.00038016,2]
[426549703,1782581439000,-186.0,0.00038127,2]
[426549705,1782581439000,-300.0,0.00038197,49]
[426549708,1782581439000,-285.63358922,0.00038256,10]
[426549706,1782581439000,-1000.0,0.00038256,2]
[426549704,1782581439000,-151.0,0.00038192,2]
[426549709,1782581439000,-350.0,0.00038356,2]
[426549717,1782581439000,-544.41651715,0.00038356,2]
[426549710,1782581439000,-350.0,0.00038356,2]
[426549711,1782581439000,-200.0,0.00038356,2]
[426549714,1782581439000,-355.02013069,0.00038356,2]
[426549713,1782581439000,-310.64261435,0.00038356,2]
[426549715,1782581439000,-296.70736141,0.00038356,2]
[426549696,1782581439000,-255.05570575,0.00037775,2]
[426549716,1782581439000,-518.45213189,0.00038356,2]
[426549718,1782581439000,-548.0050686,0.00038356,2]
[426549719,1782581439000,-510.4319446,0.00038356,2]
[426549726,1782581439000,-529.41,0.00038356,2]
[426549725,1782581439000,-559.96177631,0.00038356,2]
[426549720,1782581439000,-508.16365137,0.00038356,2]
[426549722,1782581439000,-517.53555076,0.00038356,2]
[426549712,1782581439000,-191.58407829,0.00038356,2]
[426549700,1782581439000,-600.0,0.00038,120]
[426549686,1782581439000,-407.4323368,0.00037713,15]
[426549695,1782581439000,-1197.7993157,0.00037714,2]
[426549666,1782581439000,-798.53287713,0.00036598,2]
[426549670,1782581439000,-151.0,0.00037041,2]
[426549671,1782581439000,-151.0,0.00037041,2]
[426549667,1782581439000,-151.0,0.00036877,2]
[426549669,1782581439000,-151.0,0.00037014,2]
[426549672,1782581439000,-898.18264391,0.00037045,2]
[426549675,1782581439000,-769.26411705,0.00037045,2]
[426549673,1782581439000,-831.39808753,0.00037045,2]
[426549676,1782581439000,-844.28396023,0.00037045,2]
[426549674,1782581439000,-1189.35836432,0.00037045,2]
[426549677,1782581439000,-998.16609642,0.00037045,2]
[426549678,1782581439000,-151.0,0.0003737,2]
[426549680,1782581439000,-905.8527385,0.00037686,2]
[426549679,1782581439000,-255.05570577,0.00037614,2]
[426549681,1782581439000,-151.0,0.00037699,2]
[426549682,1782581439000,-368.84536935,0.00037713,15]
[426549721,1782581439000,-515.21917086,0.00038356,2]
[426549683,1782581439000,-500.0,0.00037713,15]
[426549689,1782581439000,-500.0,0.00037713,15]
[426549688,1782581439000,-500.0,0.00037713,15]
[426549684,1782581439000,-500.0,0.00037713,15]
[426549685,1782581439000,-500.0,0.00037713,15]
[426549687,1782581439000,-500.0,0.00037713,15]
[426549690,1782581439000,-500.0,0.00037713,15]
[426549693,1782581439000,-1427.23003718,0.00037714,2]
[426549692,1782581439000,-997.67770504,0.00037714,2]
[426549691,1782581439000,-500.0,0.00037713,15]
[426549694,1782581439000,-1013.14075228,0.00037714,2]
[426549723,1782581439000,-526.61273279,0.00038356,2]
[426549767,1782581439000,-583.1026296,0.00038356,2]
[426549729,1782581439000,-534.4838781,0.00038356,2]
[426549756,1782581439000,-1580.82,0.00038356,2]
[426549760,1782581439000,-500.0,0.00038356,2]
[426549758,1782581439000,-509.44598939,0.00038356,2]
[426549762,1782581439000,-500.0,0.00038356,2]
[426549765,1782581439000,-500.0,0.00038356,2]
[426549764,1782581439000,-523.64321243,0.00038356,2]
[426549766,1782581439000,-500.0,0.00038356,2]
[426549763,1782581439000,-501.88588181,0.00038356,2]
[426549772,1782581439000,-1084.93,0.00038356,2]
[426549773,1782581439000,-1000.0,0.00038356,2]
[426549770,1782581439000,-523.27911908,0.00038356,2]
[426549768,1782581439000,-513.91311608,0.00038356,2]
[426549755,1782581439000,-517.77979803,0.00038356,2]
[426549771,1782581439000,-547.33194507,0.00038356,2]
[426549774,1782581439000,-500.0,0.00038356,2]
[426549776,1782581439000,-500.0,0.00038356,2]
[426549779,1782581439000,-523.70256803,0.00038356,2]
[426549775,1782581439000,-528.06257681,0.00038356,2]
[426549777,1782581439000,-500.0,0.00038356,2]
[426549724,1782581439000,-519.00087689,0.00038356,2]
[426549782,1782581439000,-528.50149286,0.00038356,2]
[426549783,1782581439000,-542.33331075,0.00038356,2]
[426549785,1782581439000,-549.53510708,0.00038356,2]
[426549780,1782581439000,-514.69234689,0.00038356,2]
[426549784,1782581439000,-500.0,0.00038356,2]
[426549781,1782581439000,-500.0,0.00038356,120]
[426549769,1782581439000,-557.41983533,0.00038356,2]
[426549761,1782581439000,-531.69723792,0.00038356,2]
[426549778,1782581439000,-518.95979569,0.00038356,2]
[426549759,1782581439000,-528.4574233,0.00038356,2]
[426549757,1782581439000,-528.05900058,0.00038356,2]
[426549728,1782581439000,-517.18761353,0.00038356,2]
[426549727,1782581439000,-521.03870867,0.00038356,2]
[426549732,1782581439000,-500.0,0.00038356,2]
[426549731,1782581439000,-523.69405057,0.00038356,2]
[426549736,1782581439000,-500.0,0.00038356,2]
[426549733,1782581439000,-500.0,0.00038356,2]
[426549735,1782581439000,-662.38,0.00038356,2]
[426549734,1782581439000,-710.73,0.00038356,2]
[426549741,1782581439000,-511.04565326,0.00038356,2]
[426549737,1782581439000,-520.53010179,0.00038356,2]
[426549738,1782581439000,-542.07667939,0.00038356,2]
[426549739,1782581439000,-477.53325777,0.00038356,2]
[426549730,1782581439000,-519.87971853,0.00038356,2]
[426549742,1782581439000,-524.80110146,0.00038356,2]
[426549740,1782581439000,-514.28560328,0.00038356,2]
[426549753,1782581439000,-537.33998295,0.00038356,2]
[426549754,1782581439000,-500.0,0.00038356,2]
[426549752,1782581439000,-204.82329376,0.00038356,2]
[426549750,1782581439000,-500.0,0.00038356,2]
[426549751,1782581439000,-543.57253655,0.00038356,2]
[426549749,1782581439000,-500.0,0.00038356,2]
[426549748,1782581439000,-500.0,0.00038356,2]
[426549746,1782581439000,-507.32531098,0.00038356,2]
[426549747,1782581439000,-500.0,0.00038356,2]
[426549744,1782581439000,-536.45655668,0.00038356,2]
[426549745,1782581439000,-500.0,0.00038356,2]
[426549743,1782581439000,-191.16116626,0.00038356,2]
[426549812,1782581440000,-500.0,0.00038356,2]
[426549809,1782581440000,-500.0,0.00038356,2]
[426549810,1782581440000,-526.01896805,0.00038356,2]
[426549813,1782581440000,-500.0,0.00038356,2]
[426549815,1782581440000,-500.0,0.00038356,2]
[426549817,1782581440000,-466.50348962,0.00038356,2]
[426549814,1782581440000,-500.0,0.00038356,2]
[426549816,1782581440000,-521.42502297,0.00038356,2]
[426549819,1782581440000,-1552.37,0.00038356,2]
[426549824,1782581440000,-599.2,0.00038356,2]
[426549818,1782581440000,-537.21761076,0.00038356,2]
[426549823,1782581440000,-1037.38,0.00038356,2]
[426549820,1782581440000,-214.62423697,0.00038356,2]
[426549822,1782581440000,-500.0,0.00038356,2]
[426549826,1782581440000,-522.02936261,0.00038356,2]
[426549825,1782581440000,-547.04885656,0.00038356,2]
[426549827,1782581440000,-504.95314453,0.00038356,2]
[426549829,1782581440000,-500.0,0.00038356,2]
[426549811,1782581440000,-516.63887849,0.00038356,2]
[426549821,1782581440000,-500.0,0.00038356,2]
[426549808,1782581440000,-529.03905721,0.00038356,2]
[426549792,1782581440000,-500.0,0.00038356,2]
[426549807,1782581440000,-536.77366372,0.00038356,2]
[426549786,1782581440000,-544.36389473,0.00038356,2]
[426549791,1782581440000,-500.0,0.00038356,2]
[426549788,1782581440000,-500.0,0.00038356,2]
[426549790,1782581440000,-760.97,0.00038356,2]
[426549789,1782581440000,-500.0,0.00038356,2]
[426549787,1782581440000,-500.0,0.00038356,2]
[426549797,1782581440000,-500.0,0.00038356,2]
[426549794,1782581440000,-510.40468781,0.00038356,2]
[426549793,1782581440000,-541.24619213,0.00038356,2]
[426549798,1782581440000,-500.0,0.00038356,2]
[426549795,1782581440000,-500.0,0.00038356,2]
[426549796,1782581440000,-500.0,0.00038356,2]
[426549799,1782581440000,-500.0,0.00038356,2]
[426549802,1782581440000,-500.0,0.00038356,2]
[426549803,1782581440000,-788.59,0.00038356,2]
[426549801,1782581440000,-500.0,0.00038356,2]
[426549800,1782581440000,-522.82194078,0.00038356,2]
[426549804,1782581440000,-519.68399878,0.00038356,2]
[426549805,1782581440000,-520.67667057,0.00038356,2]
[426549806,1782581440000,-500.0,0.00038356,2]
[426549833,1782581440000,-500.0,0.00038356,2]
[426549830,1782581440000,-651.5,0.00038356,2]
[426549842,1782581440000,-524.46,0.00038356,2]
[426549912,1782581440000,-270.88469597,0.00038356,2]
[426549913,1782581440000,-500.0,0.00038356,2]
[426549914,1782581440000,-500.0,0.00038356,2]
[426549917,1782581440000,-500.0,0.00038356,2]
[426549919,1782581440000,-1504.5,0.00038356,2]
[426549915,1782581440000,-522.99735807,0.00038356,2]
[426549916,1782581440000,-500.0,0.00038356,2]
[426549918,1782581440000,-500.0,0.00038356,2]
[426549920,1782581440000,-569.58,0.00038356,2]
[426549922,1782581440000,-1307.59,0.00038356,2]
[426549921,1782581440000,-978.83,0.00038356,2]
[426549926,1782581440000,-500.0,0.00038356,2]
[426549924,1782581440000,-500.0,0.00038356,2]
[426549928,1782581440000,-563.6022244,0.00038356,2]
[426549927,1782581440000,-562.15910252,0.00038356,2]
[426549929,1782581440000,-500.0,0.00038356,2]
[426549930,1782581440000,-500.0,0.00038356,2]
[426549931,1782581440000,-661.41,0.00038356,2]
[426549846,1782581440000,-500.0,0.00038356,2]
[426549910,1782581440000,-508.33506037,0.00038356,2]
[426549907,1782581440000,-653.45,0.00038356,2]
[426549923,1782581440000,-500.0,0.00038356,2]
[426549911,1782581440000,-512.52440857,0.00038356,2]
[426549848,1782581440000,-500.0,0.00038356,2]
[426549903,1782581440000,-500.0,0.00038356,2]
[426549837,1782581440000,-500.0,0.00038356,2]
[426549854,1782581440000,-500.0,0.00038356,2]
[426549857,1782581440000,-500.0,0.00038356,2]
[426549864,1782581440000,-611.22,0.00038356,2]
[426549869,1782581440000,-500.0,0.00038356,2]
[426549860,1782581440000,-1326.24,0.00038356,2]
[426549867,1782581440000,-500.0,0.00038356,2]
[426549872,1782581440000,-6130.89,0.00038356,2]
[426549852,1782581440000,-1000.0,0.00038356,2]
[426549879,1782581440000,-1968.27,0.00038356,2]
[426549877,1782581440000,-500.0,0.00038356,2]
[426549882,1782581440000,-500.0,0.00038356,2]
[426549890,1782581440000,-509.82556145,0.00038356,2]
[426549885,1782581440000,-500.0,0.00038356,2]
[426549887,1782581440000,-435.90755356,0.00038356,2]
[426549899,1782581440000,-575.17442162,0.00038356,2]
[426549893,1782581440000,-632.23952014,0.00038356,2]
[426549874,1782581440000,-500.0,0.00038356,2]
[426549896,1782581440000,-500.0,0.00038356,2]
[426549975,1782581441000,-536.22711024,0.00038356,2]
[426549974,1782581441000,-539.29579756,0.00038356,2]
[426549973,1782581441000,-526.82622286,0.00038356,2]
[426549972,1782581441000,-500.0,0.00038356,2]
[426549970,1782581441000,-503.28247939,0.00038356,2]
[426549968,1782581441000,-547.31346288,0.00038356,2]
[426549969,1782581441000,-3347.76,0.00038356,2]
[426549967,1782581441000,-410.36833802,0.00038356,2]
[426549966,1782581441000,-500.0,0.00038356,2]
[426549976,1782581441000,-500.0,0.00038356,2]
[426549964,1782581441000,-500.0,0.00038356,2]
[426549971,1782581441000,-1150.87,0.00038356,2]
[426549977,1782581441000,-3746.99,0.00038356,2]
[426549987,1782581441000,-551.02494436,0.00038356,2]
[426549984,1782581441000,-536.92175093,0.00038356,2]
[426549979,1782581441000,-5449.08,0.00038356,2]
[426549982,1782581441000,-552.47272217,0.00038356,2]
[426549980,1782581441000,-542.79012659,0.00038356,2]
[426549981,1782581441000,-1593.83,0.00038356,2]
[426549983,1782581441000,-3506.55,0.00038356,2]
[426549988,1782581441000,-1000.0,0.00038356,2]
[426549985,1782581441000,-500.0,0.00038356,2]
[426549986,1782581441000,-523.69752647,0.00038356,2]
[426549990,1782581441000,-576.82519699,0.00038356,2]
[426549989,1782581441000,-2950.93,0.00038356,2]
[426549992,1782581441000,-500.0,0.00038356,2]
[426549996,1782581441000,-500.0,0.00038356,2]
[426549978,1782581441000,-500.0,0.00038356,2]
[426549960,1782581441000,-579.19,0.00038356,2]
[426549940,1782581441000,-519.09844678,0.00038356,2]
[426549961,1782581441000,-1132.95,0.00038356,2]
[426549933,1782581441000,-613.39,0.00038356,2]
[426549932,1782581441000,-255.02749121,0.00038356,2]
[426549935,1782581441000,-500.0,0.00038356,2]
[426549936,1782581441000,-573.02714613,0.00038356,2]
[426549937,1782581441000,-500.0,0.00038356,2]
[426549938,1782581441000,-500.0,0.00038356,2]
[426549934,1782581441000,-500.0,0.00038356,2]
[426549939,1782581441000,-549.99308659,0.00038356,2]
[426549941,1782581441000,-500.0,0.00038356,2]
[426549942,1782581441000,-344.50648958,0.00038356,2]
[426549943,1782581441000,-500.0,0.00038356,2]
[426549945,1782581441000,-1896.92,0.00038356,2]
[426549944,1782581441000,-500.0,0.00038356,2]
[426549962,1782581441000,-817.96,0.00038356,2]
[426549948,1782581441000,-500.0,0.00038356,2]